[Event "*** Titled Tuesday Blitz"]
[Site "Chess.com"]
[Date "2018.05.01"]
[Round "4"]
[White "Karina_Oparina"]
[Black "AsaHoffmann"]
[Result "1-0"]
[WhiteElo "2101"]
[BlackElo "1903"]
[TimeControl "180+2"]
[EndTime "13:51:31 PDT"]
[Termination "Karina_Oparina won by resignation"]

1. Nf3 {[%clk 0:02:57.7]} 1... d6 {[%clk 0:02:59.9]} 2. d4 {[%clk 0:02:57.5]}
2... Bg4 {[%clk 0:02:59.5]} 3. c4 {[%clk 0:02:50.4]} 3... Nd7 {[%clk 0:02:58.4]}
4. Nc3 {[%clk 0:02:49.8]} 4... e5 {[%clk 0:02:57.7]} 5. h3 {[%clk 0:02:40.2]}
5... Bxf3 {[%clk 0:02:56.2]} 6. exf3 {[%clk 0:02:40.7]} 6... exd4 {[%clk
0:02:51.8]} 7. Qxd4 {[%clk 0:02:41.3]} 7... Ngf6 {[%clk 0:02:51.2]} 8. Bg5
{[%clk 0:02:35.4]} 8... Be7 {[%clk 0:02:51.2]} 9. O-O-O {[%clk 0:02:35.2]} 9...
O-O {[%clk 0:02:50.3]} 10. g4 {[%clk 0:02:33.2]} 10... a5 {[%clk 0:02:47.8]} 11.
h4 {[%clk 0:02:31.9]} 11... Nc5 {[%clk 0:02:46.5]} 12. Bd3 {[%clk 0:02:24.4]}
12... h6 {[%clk 0:02:45.9]} 13. Be3 {[%clk 0:02:20.2]} 13... Nfd7 {[%clk
0:02:39.7]} 14. Nd5 {[%clk 0:02:09.8]} 14... Bf6 {[%clk 0:02:36.5]} 15. Nxf6+
{[%clk 0:02:08.2]} 15... Qxf6 {[%clk 0:02:36.7]} 16. Bc2 {[%clk 0:02:06.5]}
16... b6 {[%clk 0:02:32.4]} 17. g5 {[%clk 0:02:03.1]} 17... Qxd4 {[%clk
0:02:32.4]} 18. Bxd4 {[%clk 0:01:44.5]} 18... h5 {[%clk 0:02:31.5]} 19. f4
{[%clk 0:01:38.3]} 19... Rfe8 {[%clk 0:02:28.3]} 20. g6 {[%clk 0:01:37.4]} 20...
f6 {[%clk 0:02:21]} 21. Rhe1 {[%clk 0:01:32.7]} 21... Kf8 {[%clk 0:02:20.4]} 22.
f3 {[%clk 0:01:23]} 22... Rxe1 {[%clk 0:02:14.6]} 23. Rxe1 {[%clk 0:01:23.7]}
23... Re8 {[%clk 0:02:14.1]} 24. Rxe8+ {[%clk 0:01:22.2]} 24... Kxe8 {[%clk
0:02:14.5]} 25. Kd2 {[%clk 0:01:22.4]} 25... Nf8 {[%clk 0:02:12.7]} 26. f5
{[%clk 0:01:19.4]} 26... Nfd7 {[%clk 0:02:10.4]} 27. f4 {[%clk 0:01:19.4]} 27...
Ke7 {[%clk 0:02:10.8]} 28. Ke3 {[%clk 0:01:19.2]} 28... c6 {[%clk 0:02:06.6]}
29. Bd1 {[%clk 0:01:19.3]} 29... d5 {[%clk 0:02:04.1]} 30. cxd5 {[%clk
0:01:18.8]} 30... cxd5 {[%clk 0:02:04.7]} 31. Bxh5 {[%clk 0:01:19.1]} 31... Ne4
{[%clk 0:01:53.4]} 32. Be2 {[%clk 0:01:16.7]} 32... Nd6 {[%clk 0:01:49.7]} 33.
Bd3 {[%clk 0:01:16.6]} 33... Nc5 {[%clk 0:01:48]} 34. Bc2 {[%clk 0:00:50.7]}
34... Nce4 {[%clk 0:01:37.7]} 35. Bxe4 {[%clk 0:00:43.2]} 35... dxe4 {[%clk
0:01:37.5]} 36. b3 {[%clk 0:00:40.3]} 36... Nxf5+ {[%clk 0:01:34.1]} 37. Kxe4
{[%clk 0:00:40.8]} 37... Nxh4 {[%clk 0:01:34.5]} 38. f5 {[%clk 0:00:38.1]} 38...
b5 {[%clk 0:01:31.5]} 39. a4 {[%clk 0:00:38.5]} 39... bxa4 {[%clk 0:01:31.8]}
40. bxa4 {[%clk 0:00:39.2]} 40... Kd6 {[%clk 0:01:32]} 41. Bxf6 {[%clk
0:00:35.4]} 1-0

[Event "*** Titled Tuesday Blitz"]
[Site "Chess.com"]
[Date "2018.05.01"]
[Round "4"]
[White "FearlessKing64"]
[Black "MattyDPerrine"]
[Result "0-1"]
[WhiteElo "2172"]
[BlackElo "2296"]
[TimeControl "180+2"]
[EndTime "13:51:33 PDT"]
[Termination "MattyDPerrine won by resignation"]

1. e4 {[%clk 0:03:01.9]} 1... c5 {[%clk 0:02:59.9]} 2. Nf3 {[%clk 0:03:02.7]}
2... e6 {[%clk 0:03:00.1]} 3. c4 {[%clk 0:03:03.2]} 3... a6 {[%clk 0:03:00.1]}
4. Nc3 {[%clk 0:03:04]} 4... Qc7 {[%clk 0:03:00.3]} 5. Be2 {[%clk 0:03:05.1]}
5... d6 {[%clk 0:03:00.6]} 6. d4 {[%clk 0:03:05.6]} 6... cxd4 {[%clk 0:03:02.5]}
7. Nxd4 {[%clk 0:03:07.2]} 7... Nf6 {[%clk 0:03:03.6]} 8. Be3 {[%clk 0:03:08.3]}
8... b6 {[%clk 0:03:04.6]} 9. Rc1 {[%clk 0:03:08.7]} 9... Bb7 {[%clk 0:03:06]}
10. f3 {[%clk 0:03:09.5]} 10... Nbd7 {[%clk 0:03:06]} 11. Qd2 {[%clk 0:03:10.5]}
11... Rc8 {[%clk 0:03:05.5]} 12. O-O {[%clk 0:03:10.7]} 12... Be7 {[%clk
0:03:06.1]} 13. Rfd1 {[%clk 0:03:12]} 13... O-O {[%clk 0:03:04.8]} 14. Bf1
{[%clk 0:03:12.8]} 14... Qb8 {[%clk 0:03:04]} 15. Qf2 {[%clk 0:03:12.6]} 15...
Bd8 {[%clk 0:03:04.1]} 16. Kh1 {[%clk 0:03:13.4]} 16... Bc7 {[%clk 0:03:04.6]}
17. Qg1 {[%clk 0:03:14.5]} 17... Kh8 {[%clk 0:03:03.8]} 18. b4 {[%clk
0:03:12.1]} 18... Rg8 {[%clk 0:03:01.5]} 19. Nb3 {[%clk 0:03:12.7]} 19... g5
{[%clk 0:02:56.9]} 20. h3 {[%clk 0:02:56.3]} 20... h5 {[%clk 0:02:55.7]} 21. Na4
{[%clk 0:02:54.1]} 21... g4 {[%clk 0:02:38.8]} 22. hxg4 {[%clk 0:02:37.4]} 22...
hxg4 {[%clk 0:02:40.7]} 23. Qh2+ {[%clk 0:02:32.4]} 23... Nh7 {[%clk 0:02:40.8]}
24. Bd3 {[%clk 0:02:00]} 24... gxf3 {[%clk 0:02:19.5]} 25. e5 {[%clk 0:01:50.9]}
25... f5 {[%clk 0:02:04.6]} 26. exf6 {[%clk 0:01:37.9]} 26... Nxf6 {[%clk
0:01:58]} 27. Nd4 {[%clk 0:00:24.6]} 27... d5 {[%clk 0:01:22.7]} 28. Qh6 {[%clk
0:00:21.3]} 28... fxg2+ {[%clk 0:00:44.6]} 29. Kg1 {[%clk 0:00:21.3]} 29... Bh2+
{[%clk 0:00:42.3]} 30. Kf2 {[%clk 0:00:19.1]} 30... Ng4+ {[%clk 0:00:40.5]} 0-1

[Event "*** Titled Tuesday Blitz"]
[Site "Chess.com"]
[Date "2018.05.01"]
[Round "4"]
[White "platy3"]
[Black "AnishGiri"]
[Result "0-1"]
[WhiteElo "2673"]
[BlackElo "2869"]
[TimeControl "180+2"]
[EndTime "13:51:37 PDT"]
[Termination "AnishGiri won by resignation"]

1. e4 {[%clk 0:03:01.9]} 1... e5 {[%clk 0:02:59.4]} 2. Nf3 {[%clk 0:03:02.6]}
2... Nc6 {[%clk 0:02:59.4]} 3. Bb5 {[%clk 0:03:03.9]} 3... a6 {[%clk 0:03:00.1]}
4. Ba4 {[%clk 0:03:04.7]} 4... Nf6 {[%clk 0:03:01.3]} 5. O-O {[%clk 0:03:02.4]}
5... Be7 {[%clk 0:03:01.4]} 6. Re1 {[%clk 0:03:00.7]} 6... b5 {[%clk 0:03:02.4]}
7. Bb3 {[%clk 0:02:59.7]} 7... O-O {[%clk 0:03:03.2]} 8. c3 {[%clk 0:02:54.1]}
8... d5 {[%clk 0:03:01.6]} 9. exd5 {[%clk 0:02:54.3]} 9... Nxd5 {[%clk
0:03:01.6]} 10. Nxe5 {[%clk 0:02:55.6]} 10... Nxe5 {[%clk 0:03:03.2]} 11. Rxe5
{[%clk 0:02:56.6]} 11... c6 {[%clk 0:03:04.7]} 12. d3 {[%clk 0:02:55.2]} 12...
Bd6 {[%clk 0:03:06]} 13. Re1 {[%clk 0:02:54.3]} 13... Qh4 {[%clk 0:03:01]} 14.
g3 {[%clk 0:02:53.8]} 14... Qh3 {[%clk 0:03:02.4]} 15. Re4 {[%clk 0:02:46.7]}
15... Nf6 {[%clk 0:03:01.1]} 16. Rh4 {[%clk 0:02:33.9]} 16... Qf5 {[%clk
0:03:02.2]} 17. Nd2 {[%clk 0:02:26]} 17... Ng4 {[%clk 0:03:02.3]} 18. Qf3 {[%clk
0:02:11.3]} 18... Qg6 {[%clk 0:02:47.1]} 19. Qxc6 {[%clk 0:01:55.4]} 19... Nxf2
{[%clk 0:01:58.8]} 20. Qxa8 {[%clk 0:01:34.9]} 20... Nxd3 {[%clk 0:01:53.7]} 21.
Ne4 {[%clk 0:01:19.5]} 21... Be7 {[%clk 0:01:33]} 22. Bg5 {[%clk 0:00:38.7]}
22... Qb6+ {[%clk 0:01:19.5]} 23. Kg2 {[%clk 0:00:16.8]} 23... Bb7 {[%clk
0:00:51.7]} 24. Bxf7+ {[%clk 0:00:15.2]} 24... Kh8 {[%clk 0:00:21.6]} 25. Qxf8+
{[%clk 0:00:15.6]} 25... Bxf8 {[%clk 0:00:23.5]} 26. Rd1 {[%clk 0:00:17.3]}
26... Qf2+ {[%clk 0:00:21.9]} 27. Kh3 {[%clk 0:00:18.1]} 27... Qf5+ {[%clk
0:00:22.6]} 28. g4 {[%clk 0:00:11.5]} 28... Qf3+ {[%clk 0:00:22.3]} 0-1

[Event "*** Titled Tuesday Blitz"]
[Site "Chess.com"]
[Date "2018.05.01"]
[Round "4"]
[White "Shtembuliak"]
[Black "PrinceCharming92"]
[Result "1-0"]
[WhiteElo "2680"]
[BlackElo "2442"]
[TimeControl "180+2"]
[EndTime "13:51:56 PDT"]
[Termination "Shtembuliak won by resignation"]

1. Nf3 {[%clk 0:03:01.9]} 1... d5 {[%clk 0:02:59.3]} 2. g3 {[%clk 0:03:03.8]}
2... Nf6 {[%clk 0:02:59.5]} 3. Bg2 {[%clk 0:03:03.1]} 3... c6 {[%clk 0:02:59.7]}
4. c4 {[%clk 0:03:01.8]} 4... Bf5 {[%clk 0:02:58.3]} 5. O-O {[%clk 0:02:59.6]}
5... e6 {[%clk 0:02:58.6]} 6. cxd5 {[%clk 0:03:00.1]} 6... exd5 {[%clk 0:02:59]}
7. d3 {[%clk 0:03:00.1]} 7... Bg6 {[%clk 0:02:57.4]} 8. Qb3 {[%clk 0:02:59.3]}
8... Qb6 {[%clk 0:02:57.1]} 9. Qc2 {[%clk 0:02:59.9]} 9... Be7 {[%clk
0:02:56.1]} 10. Ne5 {[%clk 0:02:58.8]} 10... O-O {[%clk 0:02:55.5]} 11. Nxg6
{[%clk 0:02:58.7]} 11... hxg6 {[%clk 0:02:56.1]} 12. e4 {[%clk 0:03:00.3]} 12...
dxe4 {[%clk 0:02:54.4]} 13. dxe4 {[%clk 0:03:00.9]} 13... Nbd7 {[%clk
0:02:54.1]} 14. Nc3 {[%clk 0:03:02.4]} 14... Rfe8 {[%clk 0:02:53.5]} 15. Be3
{[%clk 0:03:02.4]} 15... Qa5 {[%clk 0:02:44.4]} 16. h3 {[%clk 0:03:02.3]} 16...
Bc5 {[%clk 0:02:35.3]} 17. Rae1 {[%clk 0:03:00.4]} 17... Bxe3 {[%clk 0:02:28.4]}
18. Rxe3 {[%clk 0:03:02.3]} 18... Rad8 {[%clk 0:02:28.7]} 19. f4 {[%clk
0:03:01.8]} 19... Qc5 {[%clk 0:02:22.5]} 20. Qf2 {[%clk 0:03:02.1]} 20... Nb6
{[%clk 0:02:18.2]} 21. Re2 {[%clk 0:02:46.7]} 21... Qxf2+ {[%clk 0:02:12.1]} 22.
Kxf2 {[%clk 0:02:48.6]} 22... Rd3 {[%clk 0:02:00.2]} 23. e5 {[%clk 0:02:46.2]}
23... Nfd5 {[%clk 0:01:56.9]} 24. Ne4 {[%clk 0:02:39.6]} 24... Re7 {[%clk
0:01:21.7]} 25. Rc1 {[%clk 0:02:36]} 25... Nb4 {[%clk 0:00:59.4]} 26. a3 {[%clk
0:02:29.8]} 26... N4d5 {[%clk 0:01:00.5]} 27. h4 {[%clk 0:02:23.3]} 27... Na4
{[%clk 0:00:55.2]} 28. Rc4 {[%clk 0:02:15.1]} 28... Ndb6 {[%clk 0:00:53.2]} 29.
Rcc2 {[%clk 0:02:10.7]} 29... Red7 {[%clk 0:00:50.5]} 30. Nd6 {[%clk 0:02:08.7]}
30... Nc8 {[%clk 0:00:50.1]} 31. Nxb7 {[%clk 0:01:50.2]} 31... Rxb7 {[%clk
0:00:43.4]} 32. Bxc6 {[%clk 0:01:51]} 32... Rxb2 {[%clk 0:00:30.8]} 33. Rxb2
{[%clk 0:01:43.3]} 33... Nxb2 {[%clk 0:00:31.8]} 34. Rxb2 {[%clk 0:01:45.1]}
34... Nb6 {[%clk 0:00:32.8]} 35. a4 {[%clk 0:01:44.4]} 35... Rc3 {[%clk
0:00:33.5]} 36. Bb5 {[%clk 0:01:43.5]} 36... Nd5 {[%clk 0:00:32.6]} 37. Rd2
{[%clk 0:01:40.9]} 37... Ne3 {[%clk 0:00:33.1]} 38. Rd8+ {[%clk 0:01:36.4]}
38... Kh7 {[%clk 0:00:33.7]} 39. Be2 {[%clk 0:01:35.9]} 39... Nf5 {[%clk
0:00:33.6]} 40. Rd7 {[%clk 0:01:34.4]} 40... Nxg3 {[%clk 0:00:32.8]} 41. Bd3
{[%clk 0:01:22.9]} 41... Nh5 {[%clk 0:00:29.3]} 42. Ke3 {[%clk 0:01:17.3]} 42...
a5 {[%clk 0:00:30]} 43. Rxf7 {[%clk 0:01:15.9]} 43... Ng3 {[%clk 0:00:30.5]} 44.
e6 {[%clk 0:01:11.8]} 44... Rc6 {[%clk 0:00:31.4]} 45. e7 {[%clk 0:01:08.9]}
45... Re6+ {[%clk 0:00:32.7]} 46. Kd4 {[%clk 0:01:09.8]} 46... Nh5 {[%clk
0:00:31.6]} 47. f5 {[%clk 0:01:09.3]} 47... Rd6+ {[%clk 0:00:31.2]} 48. Kc5
{[%clk 0:01:09.8]} 48... Rxd3 {[%clk 0:00:30.9]} 49. fxg6+ {[%clk 0:01:10]}
49... Kxg6 {[%clk 0:00:31.2]} 50. e8=Q {[%clk 0:01:11.6]} 1-0

[Event "*** Titled Tuesday Blitz"]
[Site "Chess.com"]
[Date "2018.05.01"]
[Round "4"]
[White "Storne89"]
[Black "temiksmozg"]
[Result "0-1"]
[WhiteElo "2523"]
[BlackElo "2597"]
[TimeControl "180+2"]
[EndTime "13:51:56 PDT"]
[Termination "temiksmozg won by resignation"]

1. e4 {[%clk 0:03:01.5]} 1... e6 {[%clk 0:02:56.4]} 2. d4 {[%clk 0:03:02.3]}
2... d5 {[%clk 0:02:53.1]} 3. Nc3 {[%clk 0:03:03.5]} 3... Bb4 {[%clk 0:02:52.9]}
4. e5 {[%clk 0:03:04.4]} 4... Qd7 {[%clk 0:02:54.1]} 5. Qg4 {[%clk 0:02:59.7]}
5... f5 {[%clk 0:02:52.5]} 6. Qh5+ {[%clk 0:02:59.2]} 6... Qf7 {[%clk
0:02:49.8]} 7. Qd1 {[%clk 0:03:00]} 7... b6 {[%clk 0:02:47.9]} 8. Bb5+ {[%clk
0:02:53.8]} 8... c6 {[%clk 0:02:25.8]} 9. Ba4 {[%clk 0:02:54.9]} 9... Bxc3+
{[%clk 0:02:16.9]} 10. bxc3 {[%clk 0:02:55.7]} 10... a5 {[%clk 0:02:15.7]} 11.
a3 {[%clk 0:02:44.7]} 11... b5 {[%clk 0:02:05.9]} 12. Bb3 {[%clk 0:02:45.7]}
12... a4 {[%clk 0:02:07.3]} 13. Ba2 {[%clk 0:02:47.2]} 13... Bd7 {[%clk
0:02:01.1]} 14. Nf3 {[%clk 0:02:43.7]} 14... h6 {[%clk 0:02:00.3]} 15. h4 {[%clk
0:02:44.5]} 15... Qh5 {[%clk 0:01:54.5]} 16. Rh3 {[%clk 0:02:28.6]} 16... Ne7
{[%clk 0:01:51.4]} 17. Bf4 {[%clk 0:02:17.4]} 17... O-O {[%clk 0:01:43.8]} 18.
Kf1 {[%clk 0:02:11.5]} 18... Be8 {[%clk 0:01:37.4]} 19. Kg1 {[%clk 0:02:10.5]}
19... Nd7 {[%clk 0:01:27.2]} 20. Qd2 {[%clk 0:02:09]} 20... Ng6 {[%clk
0:01:21.6]} 21. Bh2 {[%clk 0:02:01.1]} 21... f4 {[%clk 0:01:19.4]} 22. c4 {[%clk
0:01:58.6]} 22... dxc4 {[%clk 0:01:13.8]} 23. c3 {[%clk 0:01:59.7]} 23... Nb6
{[%clk 0:01:14.8]} 24. Bb1 {[%clk 0:02:00.2]} 24... Nd5 {[%clk 0:01:15.4]} 25.
Be4 {[%clk 0:02:00.8]} 25... Nge7 {[%clk 0:01:16.2]} 26. Kh1 {[%clk 0:01:35.4]}
26... Bg6 {[%clk 0:01:11.9]} 27. Bxg6 {[%clk 0:01:32.8]} 27... Nxg6 {[%clk
0:01:06.6]} 28. Re1 {[%clk 0:01:32.6]} 28... Rf5 {[%clk 0:01:04]} 29. Qc2 {[%clk
0:01:31.9]} 29... Raf8 {[%clk 0:01:01.9]} 30. Nd2 {[%clk 0:01:29.3]} 30... f3
{[%clk 0:00:55.6]} 31. Nxf3 {[%clk 0:01:27.8]} 31... Rxf3 {[%clk 0:00:54.9]} 32.
Rxf3 {[%clk 0:01:18.4]} 32... Rxf3 {[%clk 0:00:55.6]} 33. gxf3 {[%clk
0:01:19.9]} 33... Qxf3+ {[%clk 0:00:43.4]} 34. Kg1 {[%clk 0:01:21.1]} 34... Nxh4
{[%clk 0:00:35.3]} 35. Qe4 {[%clk 0:01:21.8]} 35... Qxe4 {[%clk 0:00:31.3]} 36.
Rxe4 {[%clk 0:01:22.8]} 36... Nf3+ {[%clk 0:00:25.6]} 37. Kg2 {[%clk 0:01:23.4]}
37... Nd2 {[%clk 0:00:24.5]} 38. Re2 {[%clk 0:01:21.9]} 38... Nb1 {[%clk
0:00:24.4]} 39. f4 {[%clk 0:01:20.7]} 39... Nbxc3 {[%clk 0:00:22.7]} 40. Rb2
{[%clk 0:01:09.5]} 40... Nd1 {[%clk 0:00:19]} 41. Rd2 {[%clk 0:01:08.7]} 41...
c3 {[%clk 0:00:17.5]} 42. Rxd1 {[%clk 0:01:03.2]} 42... Ne3+ {[%clk 0:00:18.3]}
43. Kf3 {[%clk 0:01:05.1]} 43... Nxd1 {[%clk 0:00:19.8]} 44. Ke2 {[%clk
0:01:07]} 44... Nb2 {[%clk 0:00:16.5]} 0-1

[Event "*** Titled Tuesday Blitz"]
[Site "Chess.com"]
[Date "2018.05.01"]
[Round "4"]
[White "FabianoCaruana"]
[Black "grzechu96"]
[Result "1-0"]
[WhiteElo "2801"]
[BlackElo "2475"]
[TimeControl "180+2"]
[EndTime "13:51:58 PDT"]
[Termination "FabianoCaruana won by resignation"]

1. e4 {[%clk 0:03:01.9]} 1... c5 {[%clk 0:02:59.5]} 2. Nf3 {[%clk 0:03:01.8]}
2... d6 {[%clk 0:03:00]} 3. d4 {[%clk 0:03:01.6]} 3... cxd4 {[%clk 0:03:01.9]}
4. Nxd4 {[%clk 0:03:03.1]} 4... Nf6 {[%clk 0:02:57]} 5. Nc3 {[%clk 0:03:04.2]}
5... a6 {[%clk 0:02:58.4]} 6. Be3 {[%clk 0:03:02.2]} 6... e6 {[%clk 0:02:43.3]}
7. a4 {[%clk 0:03:00.2]} 7... Be7 {[%clk 0:02:39.5]} 8. g4 {[%clk 0:02:53.5]}
8... d5 {[%clk 0:02:26.8]} 9. exd5 {[%clk 0:02:45.5]} 9... Nxd5 {[%clk
0:02:25.4]} 10. Nxd5 {[%clk 0:02:46.3]} 10... Qxd5 {[%clk 0:02:26.4]} 11. Rg1
{[%clk 0:02:47.1]} 11... Nc6 {[%clk 0:02:13]} 12. Bg2 {[%clk 0:02:39.1]} 12...
Qa5+ {[%clk 0:02:14.1]} 13. c3 {[%clk 0:02:38.7]} 13... Bd7 {[%clk 0:02:15.3]}
14. Nb3 {[%clk 0:02:33.3]} 14... Qc7 {[%clk 0:01:49.9]} 15. Qe2 {[%clk
0:02:31.8]} 15... O-O {[%clk 0:01:49.3]} 16. Nc5 {[%clk 0:02:27.7]} 16... Rfc8
{[%clk 0:01:15.4]} 17. Nxd7 {[%clk 0:02:21.2]} 17... Qxd7 {[%clk 0:01:15.5]} 18.
Be4 {[%clk 0:02:16.5]} 18... Na5 {[%clk 0:00:43.9]} 19. g5 {[%clk 0:02:03.6]}
19... Nc4 {[%clk 0:00:43.4]} 20. Rd1 {[%clk 0:01:59.7]} 20... Qxa4 {[%clk
0:00:40]} 21. Bxb7 {[%clk 0:01:39.6]} 21... Nxe3 {[%clk 0:00:39.9]} 22. fxe3
{[%clk 0:01:35]} 22... Qh4+ {[%clk 0:00:24.4]} 23. Qf2 {[%clk 0:01:34.4]} 23...
Bxg5 {[%clk 0:00:25.4]} 24. Qxh4 {[%clk 0:01:26.9]} 24... Bxh4+ {[%clk
0:00:27.3]} 25. Ke2 {[%clk 0:01:28.3]} 25... Rab8 {[%clk 0:00:17.6]} 26. Bxc8
{[%clk 0:01:28.6]} 26... Rxc8 {[%clk 0:00:19.5]} 27. Rg4 {[%clk 0:01:21.2]}
27... Bf6 {[%clk 0:00:19.4]} 28. Ra4 {[%clk 0:01:20.6]} 28... Rb8 {[%clk
0:00:20.8]} 29. Rd2 {[%clk 0:01:07.6]} 29... Rb6 {[%clk 0:00:20.8]} 30. c4
{[%clk 0:01:08.8]} 30... Kf8 {[%clk 0:00:19.5]} 31. c5 {[%clk 0:01:09.6]} 31...
Rxb2 {[%clk 0:00:20.5]} 32. Rxb2 {[%clk 0:01:09.6]} 32... Bxb2 {[%clk
0:00:22.4]} 33. Rxa6 {[%clk 0:01:06.3]} 33... Be5 {[%clk 0:00:23.4]} 34. h3
{[%clk 0:01:01.9]} 34... Ke8 {[%clk 0:00:22.3]} 35. Ra7 {[%clk 0:00:59.5]} 35...
f5 {[%clk 0:00:19.1]} 36. c6 {[%clk 0:00:59.9]} 36... Kd8 {[%clk 0:00:19.8]} 37.
Rd7+ {[%clk 0:00:57.8]} 37... Ke8 {[%clk 0:00:19.4]} 38. Kd3 {[%clk 0:00:53]}
38... h6 {[%clk 0:00:19.2]} 39. Kc4 {[%clk 0:00:50]} 39... g5 {[%clk 0:00:20.4]}
40. Rh7 {[%clk 0:00:50.4]} 40... g4 {[%clk 0:00:21.1]} 41. hxg4 {[%clk
0:00:50.7]} 41... fxg4 {[%clk 0:00:22.3]} 42. c7 {[%clk 0:00:51]} 42... Bxc7
{[%clk 0:00:21.5]} 43. Rxc7 {[%clk 0:00:52.9]} 43... Kf8 {[%clk 0:00:22.8]} 44.
Kd3 {[%clk 0:00:53.6]} 1-0

[Event "*** Titled Tuesday Blitz"]
[Site "Chess.com"]
[Date "2018.05.01"]
[Round "4"]
[White "AlexanderL"]
[Black "Zenzo"]
[Result "1-0"]
[WhiteElo "2587"]
[BlackElo "2389"]
[TimeControl "180+2"]
[EndTime "13:51:58 PDT"]
[Termination "AlexanderL won by checkmate"]

1. Nf3 {[%clk 0:03:01.9]} 1... Nf6 {[%clk 0:03:00.6]} 2. c4 {[%clk 0:03:02.8]}
2... e6 {[%clk 0:03:01.5]} 3. Nc3 {[%clk 0:03:01.4]} 3... d5 {[%clk 0:03:02.1]}
4. e3 {[%clk 0:03:02.7]} 4... Be7 {[%clk 0:02:51.9]} 5. b3 {[%clk 0:03:02.7]}
5... O-O {[%clk 0:02:52]} 6. Bb2 {[%clk 0:03:04]} 6... b6 {[%clk 0:02:45.4]} 7.
cxd5 {[%clk 0:03:04.6]} 7... exd5 {[%clk 0:02:41.2]} 8. d4 {[%clk 0:03:06.5]}
8... Bf5 {[%clk 0:02:41.7]} 9. Bd3 {[%clk 0:02:57.1]} 9... Bxd3 {[%clk
0:02:42.1]} 10. Qxd3 {[%clk 0:02:58.1]} 10... Nbd7 {[%clk 0:02:37.6]} 11. O-O
{[%clk 0:02:57.8]} 11... c6 {[%clk 0:02:38]} 12. Rac1 {[%clk 0:02:58.1]} 12...
Rc8 {[%clk 0:02:38.1]} 13. Rfd1 {[%clk 0:02:56.4]} 13... b5 {[%clk 0:02:34.9]}
14. Qf5 {[%clk 0:02:50.9]} 14... g6 {[%clk 0:02:29.6]} 15. Qh3 {[%clk
0:02:47.5]} 15... Re8 {[%clk 0:02:27.4]} 16. Ne5 {[%clk 0:02:44.2]} 16... Bd6
{[%clk 0:01:52.7]} 17. Nxd7 {[%clk 0:02:28]} 17... Qxd7 {[%clk 0:01:52.1]} 18.
Qxd7 {[%clk 0:02:28.2]} 18... Nxd7 {[%clk 0:01:54]} 19. Rc2 {[%clk 0:02:29.8]}
19... Bb4 {[%clk 0:01:41.9]} 20. Ne2 {[%clk 0:02:30.2]} 20... Re6 {[%clk
0:01:31.2]} 21. Nf4 {[%clk 0:02:30.5]} 21... Rd6 {[%clk 0:01:28.9]} 22. Rdc1
{[%clk 0:02:26]} 22... Nb8 {[%clk 0:01:18.3]} 23. Nd3 {[%clk 0:02:14.3]} 23...
Ba5 {[%clk 0:01:19.1]} 24. Ba3 {[%clk 0:02:13.4]} 24... Rf6 {[%clk 0:00:27.2]}
25. Be7 {[%clk 0:02:10.6]} 25... Re6 {[%clk 0:00:26.8]} 26. Bh4 {[%clk
0:02:03.9]} 26... f6 {[%clk 0:00:23.6]} 27. Nc5 {[%clk 0:01:58.1]} 27... Re7
{[%clk 0:00:18.2]} 28. Bxf6 {[%clk 0:01:59]} 28... Rf7 {[%clk 0:00:19.7]} 29.
Be5 {[%clk 0:02:00.2]} 29... Bb6 {[%clk 0:00:19.7]} 30. Bxb8 {[%clk 0:02:01.1]}
30... Bxc5 {[%clk 0:00:20.5]} 31. Rxc5 {[%clk 0:02:01.7]} 31... Rxb8 {[%clk
0:00:22]} 32. Rxc6 {[%clk 0:02:02.9]} 32... a5 {[%clk 0:00:22.7]} 33. Rc8+
{[%clk 0:02:03.3]} 33... Rxc8 {[%clk 0:00:23.7]} 34. Rxc8+ {[%clk 0:02:05.2]}
34... Kg7 {[%clk 0:00:25.3]} 35. Rc5 {[%clk 0:02:07]} 35... Rb7 {[%clk
0:00:25.4]} 36. Rxd5 {[%clk 0:02:07.6]} 36... a4 {[%clk 0:00:26.6]} 37. g3
{[%clk 0:02:06.5]} 37... axb3 {[%clk 0:00:27.6]} 38. axb3 {[%clk 0:02:07.5]}
38... Kf6 {[%clk 0:00:29.2]} 39. Rc5 {[%clk 0:02:08.7]} 39... g5 {[%clk
0:00:29.5]} 40. g4 {[%clk 0:02:08.7]} 40... h6 {[%clk 0:00:30.4]} 41. b4 {[%clk
0:02:09.9]} 41... Kg7 {[%clk 0:00:30.4]} 42. Kg2 {[%clk 0:02:11.2]} 42... Rb6
{[%clk 0:00:31]} 43. Kg3 {[%clk 0:02:12.2]} 43... Kg6 {[%clk 0:00:32.4]} 44. h4
{[%clk 0:02:13.5]} 44... gxh4+ {[%clk 0:00:32.4]} 45. Kxh4 {[%clk 0:02:14.5]}
45... Rb7 {[%clk 0:00:33.5]} 46. Kg3 {[%clk 0:02:15.8]} 46... Rb8 {[%clk
0:00:32.8]} 47. f4 {[%clk 0:02:16.9]} 47... Kg7 {[%clk 0:00:34.1]} 48. Kf3
{[%clk 0:02:18.1]} 48... Kg6 {[%clk 0:00:34.9]} 49. Rc6+ {[%clk 0:02:18.5]}
49... Kg7 {[%clk 0:00:36.1]} 50. f5 {[%clk 0:02:19.8]} 50... Ra8 {[%clk
0:00:36.8]} 51. Rg6+ {[%clk 0:02:20.8]} 51... Kh7 {[%clk 0:00:37.6]} 52. Rb6
{[%clk 0:02:22.7]} 52... Ra1 {[%clk 0:00:38]} 53. Rb7+ {[%clk 0:02:23.2]} 53...
Kh8 {[%clk 0:00:38.9]} 54. Rxb5 {[%clk 0:02:25.1]} 54... Rf1+ {[%clk 0:00:39.9]}
55. Ke4 {[%clk 0:02:26]} 55... Kg7 {[%clk 0:00:40.3]} 56. Rb6 {[%clk 0:02:26.6]}
56... h5 {[%clk 0:00:40.6]} 57. gxh5 {[%clk 0:02:27.4]} 57... Rh1 {[%clk
0:00:41.7]} 58. h6+ {[%clk 0:02:28.4]} 58... Kh7 {[%clk 0:00:42.7]} 59. b5
{[%clk 0:02:29.7]} 59... Rc1 {[%clk 0:00:42.6]} 60. Rc6 {[%clk 0:02:29.7]} 60...
Rb1 {[%clk 0:00:43.2]} 61. b6 {[%clk 0:02:30.9]} 61... Rb5 {[%clk 0:00:43.6]}
62. d5 {[%clk 0:02:32]} 62... Kh8 {[%clk 0:00:43.9]} 63. Ke5 {[%clk 0:02:31.9]}
63... Kg8 {[%clk 0:00:44.2]} 64. e4 {[%clk 0:02:32.3]} 64... Kf7 {[%clk
0:00:44.7]} 65. Rc7+ {[%clk 0:02:33]} 65... Kg8 {[%clk 0:00:46.1]} 66. b7 {[%clk
0:02:33.8]} 66... Kh8 {[%clk 0:00:46.6]} 67. f6 {[%clk 0:02:32.8]} 67... Kg8
{[%clk 0:00:47.4]} 68. Kf5 {[%clk 0:02:32.2]} 68... Rb1 {[%clk 0:00:45.4]} 69.
b8=Q+ {[%clk 0:02:32.4]} 69... Rxb8 {[%clk 0:00:45.6]} 70. Kg6 {[%clk
0:02:34.3]} 70... Rb1 {[%clk 0:00:46.2]} 71. Rc8# {[%clk 0:02:35]} 1-0